fUST/lending_fUST_20250113
["ID","MTS","AMOUNT","RATE_DAILY","PERIOD"]
[348716201,1736747434036,-151.0,0.00019178,2]
[348716202,1736747434047,-525.9,0.00019178,2]
[348716203,1736747434057,-500.0,0.00019178,2]
[348716204,1736747434067,-305.135763,0.00019178,2]
[348716205,1736747434076,-151.0,0.00019178,2]
[348716206,1736747434086,-1604.18803979,0.00019178,2]
[348716207,1736747434100,-30.34196021,0.00019178,2]
[348716208,1736747434111,-501.99,0.00019178,2]
[348716209,1736747434120,-500.0,0.00019178,2]
[348716210,1736747434130,-500.0,0.00019178,2]
[348716211,1736747434139,-500.0,0.00019178,2]
[348716212,1736747434149,-500.0,0.00019178,2]
[348716213,1736747434159,-287.539559,0.00019178,2]
[348716214,1736747434169,-169.764469,0.00019178,2]
[348716215,1736747434179,-151.0,0.000192,2]
[348716216,1736747434188,-154.5925595,0.000192,2]
[348716217,1736747434198,-451.6574045,0.000192,2]
[348716218,1736747434208,-153.9204537,0.000192,2]
[348716219,1736747434218,-406.8244641,0.000192,2]
[348716220,1736747434227,-153.9204537,0.000192,2]
[348716221,1736747434237,-153.9204537,0.000192,2]
[348716222,1736747434246,-353.3287683,0.000192,2]
[348716223,1736747434256,-159.2875159,0.000192,2]
[348716224,1736747434266,-353.3287683,0.000192,2]
[348716225,1736747434275,-353.3287683,0.000192,2]
[348716226,1736747434287,-353.3287683,0.000192,2]
[348716227,1736747434297,-353.3287683,0.000192,2]
[348716228,1736747434307,-353.3287683,0.000192,2]
[348716229,1736747434317,-2801.88757984,0.00019223,2]
[348716230,1736747434326,-150.0,0.00019342,2]
[348716231,1736747434336,-537.381,0.00019342,2]
[348716232,1736747434346,-2071.0,0.00019342,2]
[348716233,1736747434355,-2315.0,0.00019342,2]
[348716234,1736747434365,-151.0,0.00019342,2]
[348716235,1736747434375,-151.955747,0.00019342,2]
[348716236,1736747434384,-641.135907,0.00019342,2]
[348716237,1736747434394,-641.135907,0.00019342,2]
[348716238,1736747434404,-151.756403,0.00019342,2]
[348716239,1736747434414,-331.425888,0.00019342,2]
[348716240,1736747434424,-331.425888,0.00019342,2]
[348716241,1736747434433,-157.700149,0.00019342,2]
[348716242,1736747434443,-157.700149,0.00019342,2]
[348716243,1736747434452,-151.0,0.00019342,2]
[348716244,1736747434462,-216.427599,0.00019342,2]
[348716245,1736747434471,-216.427599,0.00019342,2]
[348716246,1736747434610,-1162.124675,0.00019342,2]
[348716247,1736747434620,-1162.124675,0.00019342,2]
[348716248,1736747434631,-1186.693334,0.00019342,2]
[348716249,1736747434640,-1186.693334,0.00019342,2]
[348716250,1736747434651,-151.0,0.00019342,2]
[348716251,1736747434661,-243.622718,0.00019342,2]
[348716252,1736747434670,-243.622718,0.00019342,2]
[348716253,1736747434680,-151.0,0.00019342,2]
[348716254,1736747434689,-151.0,0.00019342,2]
[348716255,1736747434699,-305.135763,0.00019342,2]
[348716256,1736747434708,-151.0,0.00019342,2]
[348716257,1736747434718,-305.135763,0.00019342,2]
[348716258,1736747434727,-151.0,0.00019342,2]
[348716259,1736747434736,-262.251,0.00019417,2]
[348716260,1736747434745,-217.99347221,0.00019451,2]
[348716261,1736747434762,-133.98476007,0.00019451,2]
[348716262,1736747434771,-500.0,0.00019452,3]
[348716263,1736747434781,-151.0,0.00019452,2]
[348716264,1736747434790,-110.20023993,0.00019452,2]
[348716265,1736747434801,-40.79976007,0.00019452,2]
[348716266,1736747434811,-151.0,0.00019452,2]
[348716267,1736747434820,-178.334258,0.00019452,2]
[348716268,1736747434830,-178.334258,0.00019452,2]
[348716269,1736747434839,-178.334258,0.00019452,2]
[348716270,1736747434848,-151.0,0.00019452,2]
[348716271,1736747434857,-60.37399111,0.00019452,2]
[348716272,1736747434868,-90.87594789,0.00019452,2]
[348716273,1736747434878,-178.334258,0.00019452,2]
[348716274,1736747434887,-178.334258,0.00019452,2]
[348716275,1736747434897,-178.334258,0.00019452,2]
[348716276,1736747434907,-151.0,0.00019452,2]
[348716277,1736747434916,-151.0,0.00019452,2]
[348716278,1736747434925,-151.0,0.00019452,2]
[348716279,1736747434935,-251.040563,0.00019452,2]
[348716280,1736747434945,-32.86371429,0.00019452,2]
[348716281,1736747438659,-218.17684871,0.00019452,2]
[348716282,1736747438668,-251.040563,0.00019452,2]
[348716283,1736747438677,-251.040563,0.00019452,2]
[348716284,1736747438687,-251.040563,0.00019452,2]
[348716285,1736747438696,-251.040563,0.00019452,2]
[348716286,1736747438706,-2129.9,0.00019452,3]
[348716287,1736747438715,-151.0,0.00019452,2]
[348716288,1736747438724,-151.0,0.00019452,2]
[348716289,1736747438733,-151.0,0.00019452,2]
[348716290,1736747438743,-641.135907,0.00019452,2]
[348716291,1736747438752,-641.135907,0.00019452,2]
[348716292,1736747438762,-641.135907,0.00019452,2]
[348716293,1736747438771,-653.718119,0.00019452,2]
[348716294,1736747438780,-653.718119,0.00019452,2]
[348716295,1736747438789,-653.718119,0.00019452,2]
[348716296,1736747438798,-641.135907,0.00019452,2]
[348716297,1736747438808,-641.135907,0.00019452,2]
[348716298,1736747438817,-641.135907,0.00019452,2]
[348716299,1736747438826,-653.718119,0.00019452,2]
[348716300,1736747438835,-653.718119,0.00019452,2]
[348716301,1736747438844,-653.718119,0.00019452,2]
[348716302,1736747438853,-151.0,0.00019452,2]
[348716303,1736747438862,-151.0,0.00019452,2]
[348716304,1736747438872,-20.07146309,0.00019452,2]
[348716305,1736747438884,-130.92853691,0.00019452,2]
[348716306,1736747438893,-151.0,0.00019452,2]
[348716307,1736747438902,-393.289523,0.00019452,2]
[348716308,1736747438911,-393.289523,0.00019452,2]
[348716309,1736747438920,-393.289523,0.00019452,2]
[348716310,1736747438930,-393.289523,0.00019452,2]
[348716311,1736747438939,-393.289523,0.00019452,2]
[348716312,1736747438948,-393.289523,0.00019452,2]
[348716313,1736747438957,-393.289523,0.00019452,2]
[348716314,1736747438970,-393.289523,0.00019452,2]
[348716315,1736747438980,-540.45070302,0.00019452,3]
[348716316,1736747438989,-683.324456,0.00019452,2]
[348716317,1736747438998,-683.324456,0.00019452,2]
[348716318,1736747439008,-683.324456,0.00019452,2]
[348716319,1736747439017,-683.324456,0.00019452,2]
[348716320,1736747439027,-683.324456,0.00019452,2]
[348716321,1736747439036,-683.324456,0.00019452,2]
[348716322,1736747439046,-683.324456,0.00019452,2]
[348716323,1736747439056,-504.30576822,0.00019452,2]
[348716324,1736747439069,-179.01868778,0.00019452,2]
[348716325,1736747439078,-500.0,0.00019452,3]
[348716326,1736747439088,-181.928159,0.00019452,2]
[348716327,1736747439097,-181.928159,0.00019452,2]
[348716328,1736747439106,-181.928159,0.00019452,2]
[348716329,1736747439115,-181.928159,0.00019452,2]
[348716330,1736747439125,-181.928159,0.00019452,2]
[348716331,1736747439134,-181.928159,0.00019452,2]
[348716332,1736747439143,-181.928159,0.00019452,2]
[348716333,1736747439155,-178.50624267,0.00019452,2]
[348716413,1736747440947,-500.0,0.00019178,2]
[348716415,1736747440957,-500.0,0.00019178,2]
[348716417,1736747440971,-382.74151618,0.00019342,2]
[348716419,1736747440983,-12.25848382,0.00019342,2]
[348716421,1736747440993,-3.42191633,0.00019452,2]
[348716423,1736747441003,-500.0,0.00019452,3]
[348716425,1736747441012,-500.0,0.00019452,3]
[348716427,1736747441021,-500.0,0.00019452,3]
[348716429,1736747441030,-151.0,0.00019452,2]
[348716431,1736747441040,-500.0,0.00019452,3]
[348716433,1736747441051,-154.58211147,0.00019452,3]
[348716435,1736747441060,-500.0,0.00019452,3]
[348716437,1736747441070,-151.0,0.00019452,2]
[348716439,1736747441079,-151.0,0.00019452,2]
[348716441,1736747441088,-151.0,0.00019452,2]
[348716443,1736747441097,-151.0,0.00019452,2]
[348716445,1736747441106,-331.425888,0.00019452,2]
[348716447,1736747441115,-331.425888,0.00019452,2]
[348716449,1736747441124,-331.425888,0.00019452,2]
[348716451,1736747441134,-331.425888,0.00019452,2]
[348716453,1736747441144,-331.425888,0.00019452,2]
[348716455,1736747441154,-331.425888,0.00019452,2]
[348716456,1736747441164,-331.425888,0.00019452,2]
[348716458,1736747441174,-331.425888,0.00019452,2]
[348716459,1736747441184,-331.425888,0.00019452,2]
[348716461,1736747441193,-331.425888,0.00019452,2]
[348716462,1736747441203,-2376.26,0.00019452,3]
[348716463,1736747441212,-500.0,0.00019452,3]
[348716464,1736747441223,-500.0,0.00019452,3]
[348716465,1736747441232,-157.700149,0.00019452,2]
[348716466,1736747441241,-157.700149,0.00019452,2]
[348716467,1736747441251,-157.700149,0.00019452,2]
[348716468,1736747441261,-157.700149,0.00019452,2]
[348716469,1736747441270,-157.700149,0.00019452,2]
[348716470,1736747441280,-157.700149,0.00019452,2]
[348716471,1736747441289,-151.0,0.00019452,2]
[348716472,1736747441299,-151.0,0.00019452,2]
[348716473,1736747441309,-151.0,0.00019452,2]
[348716474,1736747441319,-151.0,0.00019452,2]
[348716475,1736747441329,-151.0,0.00019452,2]
[348716476,1736747441339,-500.0,0.00019452,3]
[348716477,1736747441348,-216.427599,0.00019452,2]
[348716478,1736747441358,-216.427599,0.00019452,2]
[348716479,1736747441368,-216.427599,0.00019452,2]
[348716480,1736747441377,-216.427599,0.00019452,2]
[348716481,1736747441386,-216.427599,0.00019452,2]
[348716482,1736747441396,-216.427599,0.00019452,2]
[348716483,1736747441406,-216.427599,0.00019452,2]
[348716484,1736747441415,-216.427599,0.00019452,2]
[348716485,1736747441425,-4868.87,0.00019452,2]
[348716486,1736747441435,-434.13780601,0.00019452,3]
[348716487,1736747441444,-1429.63,0.00019452,3]
[348716488,1736747441454,-151.0,0.00019452,2]
[348716489,1736747441464,-151.0,0.00019452,2]
[348716490,1736747441473,-151.0,0.00019452,2]
[348716491,1736747441484,-151.0,0.00019452,2]
[348716492,1736747441493,-151.0,0.00019452,2]
[348716493,1736747441503,-500.0,0.00019452,3]
[348716494,1736747441512,-1162.124675,0.00019452,2]
[348716495,1736747441521,-1162.124675,0.00019452,2]
[348716496,1736747441531,-1162.124675,0.00019452,2]
[348716497,1736747441540,-1162.124675,0.00019452,2]
[348716498,1736747441550,-500.0,0.00019452,3]
[348716499,1736747441559,-1162.124675,0.00019452,2]
[348716500,1736747441569,-1162.124675,0.00019452,2]
[348716501,1736747441578,-1162.124675,0.00019452,2]
[348716502,1736747441587,-1162.124675,0.00019452,2]
[348716503,1736747441596,-500.0,0.00019452,3]
[348716504,1736747441605,-500.0,0.00019452,3]
[348716505,1736747441614,-1186.693334,0.00019452,2]
[348716506,1736747441624,-1186.693334,0.00019452,2]
[348716507,1736747441634,-1186.693334,0.00019452,2]
[348716508,1736747441643,-1186.693334,0.00019452,2]
[348716509,1736747441652,-500.0,0.00019452,3]
[348716510,1736747441662,-1186.693334,0.00019452,2]
[348716511,1736747441671,-1186.693334,0.00019452,2]
[348716512,1736747441680,-1186.693334,0.00019452,2]
[348716513,1736747441689,-1186.693334,0.00019452,2]
[348716514,1736747441698,-151.0,0.00019452,2]
[348716515,1736747441708,-151.0,0.00019452,2]
[348716516,1736747441718,-151.0,0.00019452,2]
[348716517,1736747441727,-151.0,0.00019452,2]
[348716518,1736747441736,-500.0,0.00019452,3]
[348716519,1736747441746,-369.61920967,0.00019452,3]
[348716520,1736747441759,-3109.60079033,0.00019452,3]
[348716521,1736747441768,-532.8348409,0.00019452,3]
[348716522,1736747441778,-500.0,0.00019452,3]
[348716523,1736747441787,-500.0,0.00019452,3]
[348716524,1736747441796,-813.48,0.00019452,3]
[348716525,1736747441806,-243.622718,0.00019452,2]
[348716526,1736747441815,-243.622718,0.00019452,2]
[348716527,1736747441824,-243.622718,0.00019452,2]
[348716528,1736747441834,-243.622718,0.00019452,2]
[348716529,1736747441843,-243.622718,0.00019452,2]
[348716530,1736747441852,-243.622718,0.00019452,2]
[348716531,1736747441861,-243.622718,0.00019452,2]
[348716532,1736747441870,-243.622718,0.00019452,2]
[348716533,1736747441880,-500.0,0.00019452,3]
[348716540,1736747441978,-500.0,0.00019452,3]
[348716542,1736747441988,-814.74,0.00019452,3]
[348716544,1736747441998,-500.0,0.00019452,3]
[348716546,1736747442008,-500.0,0.00019452,3]
[348716548,1736747442018,-520.32325131,0.00019452,3]
[348716550,1736747442027,-698.73,0.00019452,3]
[348716552,1736747442036,-500.0,0.00019452,3]
[348716553,1736747442046,-151.0,0.00019452,2]
[348716555,1736747442055,-151.0,0.00019452,2]
[348716557,1736747442064,-151.0,0.00019452,2]
[348716559,1736747442074,-152.342217,0.00019452,2]
[348716561,1736747442084,-151.0,0.00019452,2]
[348716562,1736747442093,-500.0,0.00019452,3]
[348716564,1736747442102,-500.0,0.00019452,3]
[348716566,1736747442111,-1031.03,0.00019452,3]
[348716568,1736747442120,-13087.17,0.00019452,3]
[348716570,1736747442129,-1067.59,0.00019452,3]
[348716571,1736747442139,-500.0,0.00019452,3]
[348716572,1736747442148,-1000.0,0.00019452,7]
[348716574,1736747442158,-500.0,0.00019452,3]
[348716576,1736747442167,-500.0,0.00019452,3]
[348716578,1736747442176,-500.0,0.00019452,3]
[348716580,1736747442186,-305.135763,0.00019452,2]
[348716582,1736747442195,-305.135763,0.00019452,2]
[348716584,1736747442205,-305.135763,0.00019452,2]
[348716586,1736747442214,-525.9,0.00019452,3]
[348716588,1736747442223,-305.135763,0.00019452,2]
[348716590,1736747442232,-151.0,0.00019452,2]
[348716592,1736747442242,-151.0,0.00019452,2]
[348716594,1736747442251,-151.0,0.00019452,2]
[348716596,1736747442260,-151.0,0.00019452,2]
[348716598,1736747442269,-271.01538514,0.00019452,3]
[348716600,1736747442278,-305.135763,0.00019452,2]
[348716602,1736747442288,-305.135763,0.00019452,2]
[348716604,1736747442297,-305.135763,0.00019452,2]
[348716606,1736747442306,-157.975316,0.00019452,2]
[348716608,1736747442315,-305.135763,0.00019452,2]
[348716610,1736747442324,-1634.53,0.00019452,3]
[348716612,1736747442334,-501.99,0.00019452,3]
[348716614,1736747442344,-500.0,0.00019452,3]
[348716616,1736747442353,-500.0,0.00019452,3]
[348716618,1736747442362,-513.85457992,0.00019452,3]
[348716620,1736747442371,-500.0,0.00019452,3]
[348716622,1736747442380,-536.54559827,0.00019452,3]
[348716624,1736747442390,-500.0,0.00019452,3]
[348716626,1736747442400,-216.28470675,0.00019473,2]
[348716628,1736747442409,-500.0,0.00019473,2]
[348716630,1736747442418,-500.58118505,0.00019473,2]
[348716632,1736747442428,-500.0,0.00019473,2]
[348716634,1736747442437,-500.59803229,0.00019473,2]
[348716637,1736747442447,-653.718119,0.00019589,2]
[348716639,1736747442456,-653.718119,0.00019589,2]
[348716641,1736747442465,-216.427599,0.00019589,2]
[348716643,1736747442474,-216.427599,0.00019589,2]
[348716645,1736747442484,-1186.693334,0.00019589,2]
[348716647,1736747442493,-1186.693334,0.00019589,2]
[348716649,1736747442502,-243.622718,0.00019589,2]
[348716651,1736747442511,-243.622718,0.00019589,2]
[348716653,1736747442521,-309.7010481,0.00019589,2]
[348716655,1736747442530,-432.4415254,0.00019589,2]
[348716657,1736747442539,-153.0,0.00019589,2]
[348716659,1736747442549,-153.0,0.00019589,2]
[348716661,1736747442558,-153.0,0.00019589,2]
[348716663,1736747442567,-151.0,0.000197,2]
[348716665,1736747442576,-641.135907,0.000197,2]
[348716667,1736747442586,-641.135907,0.000197,2]
[348716669,1736747442595,-622.0,0.000197,2]
[348716671,1736747442604,-171.646216,0.00019726,3]
[348716673,1736747442613,-178.334258,0.00019726,2]
[348716675,1736747442622,-178.334258,0.00019726,2]
[348716677,1736747442631,-178.334258,0.00019726,2]
[348716679,1736747442641,-178.334258,0.00019726,2]
[348716681,1736747442650,-248.289684,0.00019726,2]
[348716683,1736747442659,-251.040563,0.00019726,2]
[348716685,1736747442668,-251.040563,0.00019726,2]
[348716687,1736747442678,-251.040563,0.00019726,2]
[348716689,1736747442687,-251.040563,0.00019726,2]
[348716691,1736747442697,-2129.9,0.00019726,3]
[348716692,1736747442707,-151.0,0.00019726,2]
[348716694,1736747442716,-151.0,0.00019726,2]
[348716696,1736747442725,-641.135907,0.00019726,2]
[348716698,1736747442734,-641.135907,0.00019726,2]
[348716700,1736747442743,-653.718119,0.00019726,2]
[348716702,1736747442753,-653.718119,0.00019726,2]
[348716705,1736747442763,-641.135907,0.00019726,2]
[348716707,1736747442772,-641.135907,0.00019726,2]
[348716708,1736747442782,-653.718119,0.00019726,2]
[348716710,1736747442793,-653.718119,0.00019726,2]
[348716713,1736747442802,-151.0,0.00019726,2]
[348716714,1736747442811,-151.0,0.00019726,2]
[348716716,1736747442822,-151.0,0.00019726,2]
[348716718,1736747442831,-393.289523,0.00019726,2]
[348716720,1736747442841,-393.289523,0.00019726,2]
[348716723,1736747442850,-393.289523,0.00019726,2]
[348716725,1736747442860,-393.289523,0.00019726,2]
[348716727,1736747442869,-393.289523,0.00019726,2]
[348716729,1736747442878,-393.289523,0.00019726,2]
[348716731,1736747442888,-683.324456,0.00019726,2]
[348716733,1736747442897,-683.324456,0.00019726,2]
[348716735,1736747442908,-683.324456,0.00019726,2]
[348716737,1736747442918,-683.324456,0.00019726,2]
[348716739,1736747442927,-683.324456,0.00019726,2]
[348716741,1736747442936,-683.324456,0.00019726,2]
[348716743,1736747442946,-683.324456,0.00019726,2]
[348716745,1736747442955,-197.44637664,0.00019726,2]
[348716809,1736747443783,-351.1108083,0.000195,2]
[348716811,1736747443793,-241.78239148,0.00019726,2]
[348716818,1736747443849,-244.09568788,0.00019726,2]
[348716820,1736747443858,-500.0,0.00019726,3]
[348716822,1736747443868,-181.928159,0.00019726,2]
[348716824,1736747443878,-181.928159,0.00019726,2]
[348716826,1736747443887,-181.928159,0.00019726,2]
[348716828,1736747443896,-181.928159,0.00019726,2]
[348716829,1736747443906,-181.928159,0.00019726,2]
[348716831,1736747443916,-181.928159,0.00019726,2]
[348716833,1736747443925,-181.928159,0.00019726,2]
[348716835,1736747443935,-181.928159,0.00019726,2]
[348716837,1736747443944,-500.0,0.00019726,3]
[348716839,1736747443953,-500.0,0.00019726,3]
[348716841,1736747443965,-500.0,0.00019726,3]
[348716843,1736747443975,-500.0,0.00019726,3]
[348716845,1736747443984,-500.0,0.00019726,3]
[348716847,1736747443993,-151.0,0.00019726,2]
[348716849,1736747444003,-202.127438,0.00019726,2]
[348716851,1736747444012,-331.425888,0.00019726,2]
[348716853,1736747444022,-331.425888,0.00019726,2]
[348716855,1736747444031,-331.425888,0.00019726,2]
[348716857,1736747444040,-331.425888,0.00019726,2]
[348716859,1736747444050,-331.425888,0.00019726,2]
[348716861,1736747444061,-331.425888,0.00019726,2]
[348716863,1736747444070,-331.425888,0.00019726,2]
[348716864,1736747444080,-331.425894,0.00019726,2]
[348716866,1736747444089,-2376.26,0.00019726,3]
[348716868,1736747444098,-241.07316018,0.00019726,3]
[348718209,1736747513067,208.28408,0.00013973,2]
[348718220,1736747902804,278103.57826839,0.0002,120]
[348718221,1736747902827,20000.0,0.0002,120]
[348718222,1736747902850,696.0,0.0002,120]
[348718223,1736747902878,132750.54981768,0.0002,120]
[348718224,1736747902903,17100.0,0.0002,120]
[348718225,1736747902932,32173.75803391,0.0002,120]
[348718232,1736748414209,211.109197,0.00013973,2]
[348718306,1736748636511,-300.0,0.00018182,2]
[348718307,1736748636521,-7244.32652603,0.00018183,2]
[348718308,1736748636533,-10098.15307117,0.00018183,2]
[348718309,1736748636543,-395.0,0.00018886,2]
[348718310,1736748636552,-150.0,0.000189,2]
[348718311,1736748636561,-594.124,0.00019,2]
[348718312,1736748636571,-173.04502069,0.00019078,2]
[348718313,1736748636580,-511.46177245,0.00019177,2]
[348718314,1736748636590,-434.15008325,0.00019177,2]
[348718315,1736748636599,-500.0,0.00019177,2]
[348718316,1736748636609,-500.0,0.00019177,2]
[348718317,1736748636618,-500.0,0.00019177,2]
[348718318,1736748636628,-500.0,0.00019177,2]
[348718319,1736748636638,-500.0,0.00019177,2]
[348718320,1736748636647,-500.0,0.00019177,2]
[348718321,1736748636657,-502.96013853,0.00019177,2]
[348718322,1736748636667,-500.0,0.00019177,2]
[348718323,1736748636677,-500.0,0.00019177,2]
[348718324,1736748636686,-500.0,0.00019177,2]
[348718325,1736748636696,-362.70881785,0.00019177,2]
[348718326,1736748636706,-500.0,0.00019177,2]
[348718327,1736748636715,-500.0,0.00019177,2]
[348718328,1736748636725,-500.0,0.00019177,2]
[348718329,1736748636734,-500.0,0.00019177,2]
[348718330,1736748636743,-500.0,0.00019177,2]
[348718331,1736748636752,-500.0,0.00019177,2]
[348718332,1736748636761,-500.0,0.00019177,2]
[348718333,1736748636770,-500.0,0.00019177,2]
[348718334,1736748636779,-188.47115979,0.00019177,2]
[348718335,1736748636789,-500.0,0.00019177,2]
[348718336,1736748636798,-500.0,0.00019177,2]
[348718337,1736748636807,-294.98767848,0.00019177,2]
[348718338,1736748636816,-189.31747713,0.00019177,2]
[348718339,1736748636826,-500.0,0.00019177,2]
[348718340,1736748636835,-500.0,0.00019177,2]
[348718341,1736748636843,-500.0,0.00019177,2]
[348718342,1736748636853,-345.68491424,0.00019177,2]
[348718343,1736748636862,-500.0,0.00019177,2]
[348718344,1736748636871,-500.0,0.00019177,2]
[348718345,1736748636880,-500.0,0.00019177,2]
[348718346,1736748636889,-500.0,0.00019177,2]
[348718347,1736748636899,-500.0,0.00019177,2]
[348718348,1736748636910,-500.0,0.00019177,2]
[348718349,1736748636919,-500.0,0.00019177,2]
[348718350,1736748636928,-500.0,0.00019177,2]
[348718351,1736748636937,-401.74804554,0.00019177,2]
[348718352,1736748636946,-500.0,0.00019177,2]
[348718353,1736748636956,-500.0,0.00019177,2]
[348718354,1736748636965,-500.0,0.00019177,2]
[348718355,1736748636974,-450.0,0.00019177,2]
[348718356,1736748636983,-500.0,0.00019177,2]
[348718357,1736748636992,-500.0,0.00019177,2]
[348718358,1736748637001,-500.0,0.00019177,2]
[348718359,1736748637010,-500.0,0.00019177,2]
[348718360,1736748637019,-500.0,0.00019177,2]
[348718361,1736748637028,-500.0,0.00019177,2]
[348718362,1736748637037,-500.0,0.00019177,2]
[348718363,1736748637046,-500.0,0.00019177,2]
[348718364,1736748637056,-465.7513381,0.00019177,2]
[348718365,1736748637068,-34.2486619,0.00019177,2]
[348718366,1736748637077,-180.53629231,0.00019177,2]
[348718367,1736748637086,-500.0,0.00019177,2]
[348718368,1736748637095,-500.0,0.00019177,2]
[348718369,1736748637104,-500.0,0.00019177,2]
[348718370,1736748637113,-0.02084979,0.00019177,2]
[348718407,1736748637874,-356.51951512,0.00019177,2]
[348718410,1736748637886,-143.45963509,0.00019177,2]
[348718412,1736748637897,-500.0,0.00019177,2]
[348718413,1736748637906,-500.0,0.00019177,2]
[348718415,1736748637916,-151.0,0.00019178,2]
[348718417,1736748637925,-151.0,0.00019178,2]
[348718419,1736748637935,-151.0,0.00019178,2]
[348718421,1736748637944,-151.0,0.00019178,2]
[348718423,1736748637953,-151.0,0.00019178,2]
[348718425,1736748637962,-151.0,0.00019178,2]
[348718427,1736748637972,-126.5553638,0.00019178,2]
[348719212,1736748646028,-165.79244787,0.00019077,2]
[348719214,1736748646038,-24.4446362,0.00019178,2]
[348719216,1736748646047,-170.69057304,0.00019178,2]
[348719218,1736748646059,-90.79667496,0.00019178,2]
[348719220,1736748646068,-500.0,0.00019178,2]
[348719222,1736748646079,-500.0,0.00019178,2]
[348719224,1736748646088,-503.17456169,0.00019178,2]
[348719226,1736748646098,-500.95756422,0.00019178,2]
[348719228,1736748646107,-253.55369444,0.00019178,2]
[348719230,1736748646116,-500.0,0.00019178,2]
[348719232,1736748646125,-501.64367406,0.00019178,2]
[348719234,1736748646134,-511.96904977,0.00019178,2]
[348719236,1736748646143,-500.0,0.00019178,2]
[348719238,1736748646152,-495.56408852,0.00019178,2]
[348719240,1736748646164,-500.0,0.00019178,2]
[348719242,1736748646173,-399.12622594,0.00019178,2]
[348719244,1736748646183,-500.0,0.00019178,2]
[348719246,1736748646191,-500.0,0.00019178,2]
[348719248,1736748646201,-500.0,0.00019178,2]
[348719250,1736748646211,-621.8922911,0.00019178,2]
[348719252,1736748646220,-500.0,0.00019178,2]
[348719254,1736748646230,-502.49650957,0.00019178,2]
[348719256,1736748646239,-500.0,0.00019178,2]
[348719258,1736748646248,-500.0,0.00019178,2]
[348719260,1736748646257,-500.0,0.00019178,2]
[348719262,1736748646267,-503.57370516,0.00019178,2]
[348719264,1736748646276,-500.0,0.00019178,2]
[348719266,1736748646286,-500.0,0.00019178,2]
[348719268,1736748646295,-638.39054621,0.00019178,2]
[348719270,1736748646304,-500.0,0.00019178,2]
[348719272,1736748646314,-500.0,0.00019178,2]
[348719274,1736748646323,-500.0,0.00019178,2]
[348719276,1736748646337,-2079.23,0.00019178,2]
[348719278,1736748646346,-500.0,0.00019178,2]
[348719280,1736748646355,-530.4008367,0.00019178,2]
[348719282,1736748646364,-500.0,0.00019178,2]
[348719284,1736748646374,-4509.16,0.00019178,2]
[348719286,1736748646383,-456.81631186,0.00019178,2]
[348719288,1736748646393,-500.0,0.00019178,2]
[348719290,1736748646402,-500.0,0.00019178,2]
[348719292,1736748646414,-1381.97,0.00019178,2]
[348719294,1736748646424,-500.0,0.00019178,2]
[348719307,1736748646530,-500.0,0.00019178,2]
[348719309,1736748646540,-3390.43,0.00019178,2]
[348719311,1736748646549,-500.0,0.00019178,2]
[348719313,1736748646559,-500.0,0.00019178,2]
[348719315,1736748646568,-500.0,0.00019178,2]
[348719317,1736748646577,-500.0,0.00019178,2]
[348719319,1736748646586,-500.0,0.00019178,2]
[348719321,1736748646595,-500.0,0.00019178,2]
[348719323,1736748646605,-786.54,0.00019178,2]